[Event "FIDE World Rapid-ch Open 2018"]
[White "Miton, Kamil"]
[Black "Gelfand, Boris"]
[Site "St. Petersburg"]
[Round "2.19"]
[Annotator "ChessBase"]
[Result "0-1"]
[Date "2018.12.26"]
[WhiteElo "2588"]
[BlackElo "2673"]
[PlyCount "92"]
[TimeControl "900+10"]

1. e4 {[%emt 0:0:0]} c5 {[%emt 0:0:0]} 2. Nf3 {[%emt 0:0:0]} Nc6 {[%emt 0:0:0]
} 3. Bb5 {[%emt 0:0:9]} g6 {[%emt 0:0:4]} 4. 0-0 {[%emt 0:0:0]} Bg7 {[%emt 0:0:3]} 5. d3 {[%emt 0:0:29]} Nf6 {[%emt 0:0:54]} 6. Bxc6 {[%emt 0:0:30]
} bxc6 {[%emt 0:0:2]} 7. Nc3 {[%emt 0:0:18]} 0-0 {[%emt 0:0:0]} 8. h3 {[%emt 0:0:3]} d6 {[%emt 0:0:10]} 9. e5 {[%emt 0:1:5]} Nd5 {[%emt 0:0:26]
} 10. Re1 {[%emt 0:0:7]} Rb8 {[%emt 0:0:33]} 11. Ne4 {[%emt 0:0:0]} dxe5 {[%emt 0:0:32]} 12. Nxc5 {[%emt 0:0:12]} Qd6 {[%emt 0:0:2]} 13. Nb3 {[%emt 0:0:18]} Ba6 {[%emt 0:0:51]} 14. Qe2 {[%emt 0:1:7]} f6 {[%emt 0:0:46]
} 15. Nfd2 {[%emt 0:0:59]} Nf4 {[%emt 0:1:8]} 16. Qf3 {[%emt 0:2:20]
} f5 {[%emt 0:1:40]} 17. Na5 {[%emt 0:0:41]} Nd5 {[%emt 0:0:0]} 18. Ndc4 {[%emt 0:0:40]} Qc7 {[%emt 0:0:11]} 19. Bd2 {[%emt 0:0:31]} Rf7 {[%emt 0:3:14]} 20. Qe2 {[%emt 0:1:6]} Nf4 {[%emt 0:0:28]} 21. Bxf4 {[%emt 0:0:43]
} exf4 {[%emt 0:0:0]} 22. Qe6 {[%emt 0:0:5]} Bxc4 {[%emt 0:0:0]} 23. Nxc4 {[%emt 0:0:4]} Bxb2 {[%emt 0:0:1]} 24. Rab1 {[%emt 0:0:0]} Bc3 {[%emt 0:0:3]} 25. Red1 {[%emt 0:0:15]} Rxb1 {[%emt 0:0:38]} 26. Rxb1 {[%emt 0:0:1]} Kg7 {[%emt 0:0:1]} 27. Rb3 {[%emt 0:0:15]} Bf6 {[%emt 0:0:45]
} 28. a4 {[%emt 0:0:15]} Rf8 {[%emt 0:0:17]} 29. a5 {[%emt 0:0:0]} Rb8 {[%emt 0:0:26]} 30. a6 {[%emt 0:1:33]} Rb5 {[%emt 0:0:44]} 31. Kf1 {[%emt 0:0:31]} Rxb3 {[%emt 0:1:13]} 32. cxb3 {[%emt 0:0:2]} Qb8 {[%emt 0:0:1]
} 33. Nd2 {[%emt 0:1:19]} Qb6 {[%emt 0:1:1]} 34. Qc4 {[%emt 0:0:0]} Bd4 {[%emt 0:0:28]} 35. Nf3 {[%emt 0:0:23]} Bxf2 {[%emt 0:0:2]} 36. d4 {[%emt 0:0:9]} Be3 {[%emt 0:0:29]} 37. Ne5 {[%emt 0:0:24]} Qa5 {[%emt 0:0:0]} 38. Qf7+ {[%emt 0:1:41]} Kh6 {[%emt 0:0:1]} 39. Qf8+ {[%emt 0:0:6]
} Kh5 {[%emt 0:0:6]} 40. Nf3 {[%emt 0:0:20]} Qxa6+ {[%emt 0:0:40]} 41. Ke1 {[%emt 0:0:5]} Qa1+ {[%emt 0:0:2]} 42. Ke2 {[%emt 0:0:1]} Qb2+ {[%emt 0:0:0]} 43. Ke1 {[%emt 0:0:4]} Qc1+ {[%emt 0:0:12]} 44. Ke2 {[%emt 0:0:1]} Qc2+ {[%emt 0:0:1]} 45. Ke1 {[%emt 0:0:2]} Bf2+ {[%emt 0:0:8]} 46. Kf1 {[%emt 0:0:5]
} Bg3 {[%emt 0:0:1]} 0-1

[Event "FIDE World Rapid-ch Open 2018"]
[White "Oparin, Grigoriy"]
[Black "Bindrich, Falko"]
[Site "St. Petersburg"]
[Round "2.20"]
[Annotator "ChessBase"]
[Result "1-0"]
[Date "2018.12.26"]
[WhiteElo "2613"]
[BlackElo "2606"]
[PlyCount "121"]
[TimeControl "900+10"]

1. Nf3 {[%emt 0:0:0]} d5 {[%emt 0:0:0]} 2. g3 {[%emt 0:0:0]} Bg4 {[%emt 0:0:0]
} 3. Bg2 {[%emt 0:0:0]} e6 {[%emt 0:0:0]} 4. 0-0 {[%emt 0:0:0]} Nf6 {[%emt 0:0:0]} 5. h3 {[%emt 0:0:34]} Bh5 {[%emt 0:0:4]} 6. c4 {[%emt 0:0:7]
} c6 {[%emt 0:0:1]} 7. d4 {[%emt 0:0:8]} Nbd7 {[%emt 0:0:8]
} 8. cxd5 {[%emt 0:0:8]} exd5 {[%emt 0:0:3]} 9. Nh4 {[%emt 0:0:9]} Bg6 {[%emt 0:0:5]
} 10. Nc3 {[%emt 0:0:8]} Be7 {[%emt 0:1:20]} 11. Nxg6 {[%emt 0:0:37]
} hxg6 {[%emt 0:0:2]} 12. Qd3 {[%emt 0:0:1]} 0-0 {[%emt 0:0:0]} 13. h4 {[%emt 0:0:11]} Re8 {[%emt 0:0:10]} 14. Bf3 {[%emt 0:0:44]} Nb6 {[%emt 0:0:52]} 15. Kg2 {[%emt 0:0:30]} Qd7 {[%emt 0:0:8]} 16. Bf4 {[%emt 0:1:36]
} Nc4 {[%emt 0:0:39]} 17. Rab1 {[%emt 0:2:31]} Rad8 {[%emt 0:0:0]} 18. Rfd1 {[%emt 0:0:32]} Nd6 {[%emt 0:1:35]} 19. a4 {[%emt 0:1:23]} a6 {[%emt 0:1:52]} 20. a5 {[%emt 0:1:24]} Qe6 {[%emt 0:1:5]} 21. Na4 {[%emt 0:1:18]
} Nde4 {[%emt 0:0:18]} 22. b4 {[%emt 0:0:3]} Bd6 {[%emt 0:0:0]} 23. Nc5 {[%emt 0:1:2]} Qe7 {[%emt 0:0:35]} 24. e3 {[%emt 0:1:10]} Qc7 {[%emt 0:0:19]} 25. Qc2 {[%emt 0:0:41]} Re7 {[%emt 0:0:33]} 26. Nd3 {[%emt 0:0:19]
} Bxf4 {[%emt 0:1:45]} 27. exf4 {[%emt 0:0:7]} Qc8 {[%emt 0:0:0]} 28. Ne5 {[%emt 0:0:3]} Qf5 {[%emt 0:0:10]} 29. Rbc1 {[%emt 0:0:43]} Rde8 {[%emt 0:0:45]} 30. Re1 {[%emt 0:0:5]} Qe6 {[%emt 0:1:10]} 31. Rh1 {[%emt 0:0:20]
} Qd6 {[%emt 0:0:5]} 32. Rb1 {[%emt 0:0:4]} Qe6 {[%emt 0:0:0]} 33. Rbe1 {[%emt 0:0:15]} Qd6 {[%emt 0:0:2]} 34. Qb2 {[%emt 0:0:28]} Qc7 {[%emt 0:0:10]} 35. h5 {[%emt 0:0:25]} gxh5 {[%emt 0:0:44]} 36. Bxh5 {[%emt 0:0:2]
} g6 {[%emt 0:0:9]} 37. Bf3 {[%emt 0:0:6]} Kg7 {[%emt 0:0:0]} 38. g4 {[%emt 0:0:21]} Qc8 {[%emt 0:0:47]} 39. Qc1 {[%emt 0:0:30]} Rh8 {[%emt 0:0:39]} 40. f5 {[%emt 0:0:33]} Ree8 {[%emt 0:0:10]} 41. g5 {[%emt 0:0:0]} Qxf5 {[%emt 0:0:15]} 42. gxf6+ {[%emt 0:0:9]} Nxf6 {[%emt 0:0:2]} 43. Qe3 {[%emt 0:0:16]} g5 {[%emt 0:0:17]} 44. Be2 {[%emt 0:0:40]} Ne4 {[%emt 0:0:6]
} 45. Bg4 {[%emt 0:0:12]} Qf6 {[%emt 0:0:15]} 46. Qf3 {[%emt 0:0:0]} Qxf3+ {[%emt 0:0:9]} 47. Nxf3 {[%emt 0:0:7]} Rxh1 {[%emt 0:0:12]} 48. Rxh1 {[%emt 0:0:1]} Nd6 {[%emt 0:0:5]} 49. Nxg5 {[%emt 0:0:13]} Kf6 {[%emt 0:0:10]
} 50. Nf3 {[%emt 0:0:29]} Rg8 {[%emt 0:0:1]} 51. Ne5 {[%emt 0:0:0]} Nb5 {[%emt 0:0:2]} 52. Rh7 {[%emt 0:0:31]} Nxd4 {[%emt 0:0:4]} 53. f4 {[%emt 0:0:1]} Rg7 {[%emt 0:0:18]} 54. Rxg7 {[%emt 0:0:21]} Kxg7 {[%emt 0:0:1]
} 55. Bc8 {[%emt 0:0:0]} c5 {[%emt 0:0:27]} 56. bxc5 {[%emt 0:0:0]} Nb3 {[%emt 0:0:1]} 57. c6 {[%emt 0:0:10]} bxc6 {[%emt 0:0:8]} 58. Nxc6 {[%emt 0:0:2]} Nc5 {[%emt 0:0:3]} 59. Kf3 {[%emt 0:0:2]} d4 {[%emt 0:0:27]
} 60. Nxd4 {[%emt 0:0:3]} Kf6 {[%emt 0:0:2]} 61. Nc6 {[%emt 0:0:2]
} 1-0

[Event "FIDE World Rapid-ch Open 2018"]
[White "Bosiocic, Marin"]
[Black "Cheparinov, Ivan"]
[Site "St. Petersburg"]
[Round "2.21"]
[Annotator "ChessBase"]
[Result "0-1"]
[Date "2018.12.26"]
[WhiteElo "2599"]
[BlackElo "2709"]
[PlyCount "110"]
[TimeControl "900+10"]

1. d4 {[%emt 0:0:0]} Nf6 {[%emt 0:0:0]} 2. c4 {[%emt 0:0:10]} e6 {[%emt 0:0:0]} 3. Nf3 {[%emt 0:0:10]} d5 {[%emt 0:0:10]} 4. Nc3 {[%emt 0:0:10]} Bb4 {[%emt 0:0:10]} 5. Bg5 {[%emt 0:0:10]} h6 {[%emt 0:0:10]} 6. Bxf6 {[%emt 0:0:0]} Qxf6 {[%emt 0:0:10]} 7. Qa4+ {[%emt 0:0:10]} Nc6 {[%emt 0:0:10]} 8. e3 {[%emt 0:0:10]} 0-0 {[%emt 0:0:10]} 9. Be2 {[%emt 0:0:10]} dxc4 {[%emt 0:0:0]} 10. 0-0 {[%emt 0:0:9]} Bd7 {[%emt 0:0:25]} 11. Bxc4 {[%emt 0:0:8]} Bxc3 {[%emt 0:0:11]} 12. bxc3 {[%emt 0:0:1]} Rfd8 {[%emt 0:0:3]} 13. Be2 {[%emt 0:0:37]
} b6 {[%emt 0:0:16]} 14. Bb5 {[%emt 0:0:25]} e5 {[%emt 0:0:26]
} 15. Qa6 {[%emt 0:0:14]} Bc8 {[%emt 0:2:59]} 16. Qa3 {[%emt 0:0:39]} Bb7 {[%emt 0:0:8]
} 17. Rfe1 {[%emt 0:2:20]} Qg6 {[%emt 0:0:44]} 18. Bf1 {[%emt 0:0:3]
} e4 {[%emt 0:2:12]} 19. Nd2 {[%emt 0:0:8]} Ne5 {[%emt 0:0:0]} 20. Qe7 {[%emt 0:0:40]} Nf3+ {[%emt 0:0:36]} 21. Nxf3 {[%emt 0:0:11]} exf3 {[%emt 0:0:2]} 22. Qxc7 {[%emt 0:1:4]} fxg2 {[%emt 0:0:3]} 23. Be2 {[%emt 0:0:2]
} Bd5 {[%emt 0:0:24]} 24. Qg3 {[%emt 0:0:50]} Qe6 {[%emt 0:0:0]} 25. Bd3 {[%emt 0:1:13]} Bxa2 {[%emt 0:1:37]} 26. Qxg2 {[%emt 0:0:6]} Rac8 {[%emt 0:0:8]} 27. Rac1 {[%emt 0:2:39]} Bc4 {[%emt 0:0:2]} 28. Bb1 {[%emt 0:0:5]
} a5 {[%emt 0:0:30]} 29. Kh1 {[%emt 0:1:45]} a4 {[%emt 0:0:58]
} 30. Rg1 {[%emt 0:0:3]} Qf6 {[%emt 0:0:59]} 31. f4 {[%emt 0:0:36]} a3 {[%emt 0:0:8]
} 32. e4 {[%emt 0:0:9]} a2 {[%emt 0:1:51]} 33. Bc2 {[%emt 0:0:0]} Kf8 {[%emt 0:0:55]} 34. f5 {[%emt 0:1:5]} Ra8 {[%emt 0:0:41]} 35. Ra1 {[%emt 0:0:11]} Ra3 {[%emt 0:0:9]} 36. Qd2 b5 37. Rg2 {[%emt 0:1:41]} b4 {[%emt 0:0:16]} 38. e5 {[%emt 0:0:12]} Qc6 {[%emt 0:0:11]} 39. Kg1 {[%emt 0:0:50]
} Bd5 {[%emt 0:0:49]} 40. Rg3 {[%emt 0:0:32]} Rxc3 {[%emt 0:0:0]} 41. f6 {[%emt 0:0:15]} Rxg3+ {[%emt 0:0:18]} 42. hxg3 {[%emt 0:0:4]} Qc3 {[%emt 0:0:6]} 43. Qxc3 {[%emt 0:0:19]} bxc3 {[%emt 0:0:2]} 44. fxg7+ {[%emt 0:0:11]} Kxg7 {[%emt 0:0:1]} 45. Kf2 {[%emt 0:0:0]} Rb8 {[%emt 0:0:0]} 46. Ke3 {[%emt 0:0:5]} Be6 {[%emt 0:0:1]} 47. g4 {[%emt 0:0:40]} Bxg4 {[%emt 0:0:14]} 48. Rxa2 {[%emt 0:0:5]} Rb2 {[%emt 0:0:11]} 49. Rxb2 {[%emt 0:0:3]
} cxb2 {[%emt 0:0:1]} 50. d5 {[%emt 0:0:34]} Bh5 {[%emt 0:0:0]} 51. d6 {[%emt 0:0:49]} Kf8 {[%emt 0:0:0]} 52. e6 {[%emt 0:0:3]} fxe6 {[%emt 0:0:8]} 53. Kd2 {[%emt 0:0:9]} Bf3 {[%emt 0:0:9]} 54. Ke3 {[%emt 0:0:7]
} Bd5 {[%emt 0:0:4]} 55. Bb1 {[%emt 0:0:3]} Ke8 {[%emt 0:0:0]} 0-1

[Event "FIDE World Rapid-ch Open 2018"]
[White "Gareyev, Timur"]
[Black "Morozevich, Alexander"]
[Site "St. Petersburg"]
[Round "2.23"]
[Annotator "ChessBase"]
[Result "0-1"]
[Date "2018.12.26"]
[WhiteElo "2569"]
[BlackElo "2656"]
[PlyCount "42"]
[TimeControl "900+10"]

1. Nf3 {[%emt 0:3:33]} d5 {[%emt 0:0:0]} 2. c4 {[%emt 0:0:2]} d4 {[%emt 0:0:0]} 3. g3 {[%emt 0:0:27]} Nc6 {[%emt 0:0:0]} 4. Bg2 {[%emt 0:0:1]} e5 {[%emt 0:0:0]} 5. 0-0 {[%emt 0:0:2]} e4 {[%emt 0:0:50]} 6. Ne1 {[%emt 0:0:0]} h5 {[%emt 0:0:1]} 7. d3 {[%emt 0:0:21]} e3 {[%emt 0:0:6]} 8. fxe3 {[%emt 0:0:31]} h4 {[%emt 0:0:1]} 9. exd4 {[%emt 0:0:33]} Nxd4 {[%emt 0:0:0]} 10. e3 {[%emt 0:0:2]} hxg3 {[%emt 0:0:0]} 11. hxg3 {[%emt 0:0:2]} Nf5 {[%emt 0:0:44]} 12. Rxf5 {[%emt 0:2:15]} Bxf5 {[%emt 0:0:2]} 13. Bxb7 {[%emt 0:0:2]
} Rb8 {[%emt 0:1:7]} 14. Qf3 {[%emt 0:0:2]} Rxb7 {[%emt 0:0:0]} 15. Qxf5 {[%emt 0:0:2]} Ne7 {[%emt 0:0:57]} 16. Qf2 {[%emt 0:1:35]} Rb6 {[%emt 0:1:15]} 17. Nc3 {[%emt 0:0:2]} Rbh6 {[%emt 0:0:44]} 18. Qg2 {[%emt 0:0:46]
} Rh1+ {[%emt 0:1:38]} 19. Qxh1 {[%emt 0:0:1]} Rxh1+ {[%emt 0:0:0]} 20. Kxh1 {[%emt 0:0:2]} Nf5 {[%emt 0:0:2]} 21. Ne4 {[%emt 0:0:2]} Nxg3+ {[%emt 0:2:15]} 0-1

[Event "FIDE World Rapid-ch Open 2018"]
[White "Matlakov, Maxim"]
[Black "Indjic, Aleksandar"]
[Site "St. Petersburg"]
[Round "2.24"]
[Annotator "ChessBase"]
[Result "1-0"]
[Date "2018.12.26"]
[WhiteElo "2700"]
[BlackElo "2620"]
[PlyCount "107"]
[TimeControl "900+10"]

1. c4 {[%emt 0:0:0]} Nc6 {[%emt 0:0:0]} 2. Nc3 {[%emt 0:0:4]} g6 {[%emt 0:0:3]
} 3. d4 {[%emt 0:0:9]} d6 {[%emt 0:0:1]} 4. Nf3 {[%emt 0:0:0]} Bg7 {[%emt 0:0:4]} 5. g3 {[%emt 0:0:2]} Bg4 {[%emt 0:0:59]} 6. Bg2 {[%emt 0:0:22]
} Qc8 {[%emt 0:0:2]} 7. d5 {[%emt 0:0:30]} Ne5 {[%emt 0:0:8]
} 8. Nxe5 {[%emt 0:0:33]} Bxe5 {[%emt 0:0:2]} 9. 0-0 {[%emt 0:0:50]} h5 {[%emt 0:0:6]
} 10. h4 {[%emt 0:2:24]} Bh3 {[%emt 0:0:27]} 11. Be3 {[%emt 0:0:0]} Bxg2 {[%emt 0:1:2]} 12. Kxg2 {[%emt 0:0:1]} c5 {[%emt 0:1:9]} 13. Qd3 {[%emt 0:1:10]} Bg7 {[%emt 0:1:52]} 14. Bg5 {[%emt 0:1:10]} Nf6 {[%emt 0:0:31]
} 15. Rab1 {[%emt 0:0:30]} 0-0 {[%emt 0:0:21]} 16. Ne4 {[%emt 0:0:6]
} Re8 {[%emt 0:0:24]} 17. Nxf6+ {[%emt 0:0:44]} exf6 {[%emt 0:0:0]} 18. Bf4 {[%emt 0:0:1]} Qd7 {[%emt 0:0:21]} 19. b4 {[%emt 0:0:3]} cxb4 {[%emt 0:0:18]} 20. Rxb4 {[%emt 0:0:5]} f5 {[%emt 0:0:1]} 21. a4 {[%emt 0:0:26]
} b6 {[%emt 0:0:11]} 22. Rb5 {[%emt 0:0:32]} Re4 {[%emt 0:0:0]} 23. a5 {[%emt 0:0:18]} Rd4 {[%emt 0:0:2]} 24. Qb3 {[%emt 0:1:12]} bxa5 {[%emt 0:0:34]} 25. Rxa5 {[%emt 0:0:3]} Rc8 {[%emt 0:0:8]} 26. Rc1 {[%emt 0:0:22]
} Qe8 {[%emt 0:5:15]} 27. Be3 {[%emt 0:1:21]} Rg4 {[%emt 0:0:0]} 28. f3 {[%emt 0:1:8]} f4 {[%emt 0:0:3]} 29. fxg4 {[%emt 0:1:36]} Qe4+ {[%emt 0:0:1]} 30. Kh2 {[%emt 0:0:29]} fxe3 {[%emt 0:0:30]} 31. Qd3 {[%emt 0:0:48]
} Qxd3 {[%emt 0:1:24]} 32. exd3 {[%emt 0:0:1]} Re8 {[%emt 0:0:0]} 33. Ra2 {[%emt 0:0:9]} hxg4 {[%emt 0:0:2]} 34. Kg2 {[%emt 0:0:10]} Bd4 {[%emt 0:0:2]} 35. Rb1 {[%emt 0:0:44]} Kg7 {[%emt 0:1:15]} 36. Kf1 {[%emt 0:0:2]
} f5 {[%emt 0:0:15]} 37. Rb7+ {[%emt 0:0:21]} Kf6 {[%emt 0:0:0]} 38. Ke2 {[%emt 0:0:15]} Be5 {[%emt 0:1:32]} 39. Raxa7 {[%emt 0:0:22]} Bxg3 {[%emt 0:0:1]} 40. Rf7+ {[%emt 0:0:37]} Ke5 {[%emt 0:0:1]} 41. Rae7+ {[%emt 0:0:3]} Rxe7 {[%emt 0:0:1]} 42. Rxe7+ {[%emt 0:0:2]} Kd4 {[%emt 0:0:0]} 43. Rxe3 {[%emt 0:0:4]} Bxh4 {[%emt 0:0:2]} 44. Re6 {[%emt 0:0:6]
} g5 {[%emt 0:0:41]} 45. Rxd6 {[%emt 0:0:12]} f4 {[%emt 0:0:1]} 46. Rf6 {[%emt 0:0:59]
} f3+ {[%emt 0:0:3]} 47. Kf1 {[%emt 0:0:3]} Ke3 {[%emt 0:0:0]} 48. Re6+ {[%emt 0:0:13]} Kf4 {[%emt 0:0:2]} 49. Re4+ {[%emt 0:0:20]} Kf5 {[%emt 0:0:44]} 50. d6 {[%emt 0:0:1]} g3 {[%emt 0:0:1]} 51. Rxh4 {[%emt 0:0:19]
} gxh4 {[%emt 0:0:21]} 52. d7 {[%emt 0:0:1]} h3 {[%emt 0:0:0]} 53. d8=Q {[%emt 0:0:2]} h2 {[%emt 0:0:9]} 54. Qd5+ 1-0

[Event "FIDE World Rapid-ch Open 2018"]
[White "Yuffa, Daniil"]
[Black "Amonatov, Farrukh"]
[Site "St. Petersburg"]
[Round "2.25"]
[Annotator "ChessBase"]
[Result "0-1"]
[Date "2018.12.26"]
[WhiteElo "2572"]
[BlackElo "2614"]
[PlyCount "104"]
[TimeControl "900+10"]

1. d4 {[%emt 0:0:0]} Nf6 {[%emt 0:0:0]} 2. c4 {[%emt 0:0:0]} g6 {[%emt 0:0:0]} 3. Nc3 {[%emt 0:0:0]} Bg7 {[%emt 0:0:0]} 4. e4 {[%emt 0:0:0]} d6 {[%emt 0:0:0]} 5. Nf3 {[%emt 0:0:2]} 0-0 {[%emt 0:0:3]} 6. Be2 {[%emt 0:0:0]} e5 {[%emt 0:0:3]} 7. d5 {[%emt 0:0:4]} a5 {[%emt 0:0:3]} 8. Bg5 {[%emt 0:0:14]
} Na6 {[%emt 0:0:3]} 9. Nd2 {[%emt 0:0:8]} Qe8 {[%emt 0:0:0]} 10. g4 {[%emt 0:1:8]} Nd7 {[%emt 0:0:11]} 11. Rg1 {[%emt 0:0:59]} Ndc5 {[%emt 0:0:5]} 12. h4 {[%emt 0:1:30]} Kh8 {[%emt 0:0:38]} 13. Nf1 {[%emt 0:0:0]} Bd7 {[%emt 0:4:8]} 14. Ng3 {[%emt 0:0:20]} a4 {[%emt 0:0:53]} 15. h5 {[%emt 0:0:16]} h6 {[%emt 0:0:10]} 16. Be3 {[%emt 0:0:17]} g5 {[%emt 0:0:0]} 17. Kf1 {[%emt 0:0:47]} c6 {[%emt 0:0:41]} 18. Kg2 {[%emt 0:1:40]} cxd5 {[%emt 0:0:10]} 19. Nxd5 {[%emt 0:1:44]} Ne6 {[%emt 0:2:21]} 20. Nf5 {[%emt 0:0:2]
} Nf4+ {[%emt 0:0:38]} 21. Bxf4 {[%emt 0:1:59]} exf4 {[%emt 0:0:0]} 22. Nxg7 {[%emt 0:1:0]} Kxg7 {[%emt 0:0:4]} 23. Nb6 {[%emt 0:0:17]
} Rd8 {[%emt 0:0:20]} 24. Qd4+ {[%emt 0:0:14]} Qe5 {[%emt 0:1:7]} 25. Rgd1 {[%emt 0:0:3]} Bc6 {[%emt 0:0:7]} 26. f3 {[%emt 0:0:25]} Nc5 {[%emt 0:0:0]} 27. Rab1 {[%emt 0:1:0]} Nxe4 {[%emt 0:1:27]} 28. Qxe5+ {[%emt 0:1:7]} dxe5 {[%emt 0:0:3]} 29. fxe4 {[%emt 0:0:17]} Bxe4+ {[%emt 0:0:3]} 30. Kf2 {[%emt 0:0:25]} Bxb1 {[%emt 0:0:3]} 31. Rxb1 {[%emt 0:0:1]} e4 {[%emt 0:0:0]} 32. Nxa4 {[%emt 0:0:22]} Rd2 {[%emt 0:0:17]} 33. Nc3 {[%emt 0:0:6]} f5 {[%emt 0:0:37]} 34. gxf5 {[%emt 0:0:15]} e3+ {[%emt 0:0:3]} 35. Kf3 {[%emt 0:0:7]
} Rxf5 {[%emt 0:0:3]} 36. c5 {[%emt 0:0:35]} Rd4 {[%emt 0:0:0]} 37. b4 {[%emt 0:0:41]} Kf6 {[%emt 0:0:18]} 38. Rd1 {[%emt 0:0:36]} Rxd1 {[%emt 0:0:44]} 39. Bxd1 {[%emt 0:0:11]} Ke5 {[%emt 0:0:1]} 40. a4 {[%emt 0:0:30]
} Rf8 {[%emt 0:0:48]} 41. Nb5 {[%emt 0:0:28]} g4+ {[%emt 0:0:0]} 42. Kxg4 {[%emt 0:0:2]} Rg8+ {[%emt 0:0:0]} 43. Kf3 {[%emt 0:1:8]} Rg1 44. Nc3 Rf1+ {[%emt 0:2:0]} 45. Ke2 {[%emt 0:0:13]} Rf2+ {[%emt 0:0:12]
} 46. Ke1 {[%emt 0:0:0]} f3 {[%emt 0:0:2]} 47. b5 {[%emt 0:0:17]} Kf4 {[%emt 0:0:9]
} 48. Nd5+ {[%emt 0:0:10]} Ke4 {[%emt 0:0:3]} 49. c6 {[%emt 0:0:0]} bxc6 {[%emt 0:0:7]} 50. bxc6 {[%emt 0:0:2]} Rg2 {[%emt 0:0:27]} 51. Nc3+ {[%emt 0:0:30]} Kd3 {[%emt 0:0:6]} 52. Kf1 {[%emt 0:0:0]} e2+ {[%emt 0:0:17]
 Nb1} 0-1

[Event "FIDE World Rapid-ch Open 2018"]
[White "Bocharov, Dmitry"]
[Black "Zvjaginsev, Vadim"]
[Site "St. Petersburg"]
[Round "2.26"]
[Annotator "ChessBase"]
[Result "1-0"]
[Date "2018.12.26"]
[WhiteElo "2533"]
[BlackElo "2642"]
[PlyCount "61"]
[TimeControl "900+10"]

1. c4 {[%emt 0:0:0]} g6 {[%emt 0:0:0]} 2. d4 {[%emt 0:0:6]} Bg7 {[%emt 0:0:0]} 3. e4 {[%emt 0:1:26]} c5 {[%emt 0:0:10]} 4. d5 {[%emt 0:0:15]} d6 {[%emt 0:0:7]
} 5. Nc3 {[%emt 0:0:2]} e6 {[%emt 0:0:3]} 6. Nf3 {[%emt 0:0:0]} exd5 7. cxd5 {[%emt 0:0:17]} a6 {[%emt 0:0:6]} 8. h3 {[%emt 0:0:58]} b5 {[%emt 0:0:8]} 9. Bd3 {[%emt 0:0:1]} Nf6 {[%emt 0:0:10]} 10. 0-0 {[%emt 0:0:3]
} 0-0 {[%emt 0:0:12]} 11. Bf4 {[%emt 0:0:14]} Re8 {[%emt 0:0:0]} 12. Re1 {[%emt 0:0:6]} Qb6 {[%emt 0:0:17]} 13. Qd2 {[%emt 0:0:56]} Nbd7 {[%emt 0:0:14]} 14. a3 {[%emt 0:0:17]} Bb7 {[%emt 0:0:26]} 15. b4 {[%emt 0:0:21]
} Rac8 {[%emt 0:0:13]} 16. Rac1 {[%emt 0:0:1]} Nh5 {[%emt 0:0:0]} 17. Bh6 Bh8 18. Be3 {[%emt 0:2:6]} Qd8 {[%emt 0:0:37]} 19. Ne2 {[%emt 0:0:51]
} Nhf6 {[%emt 0:1:54]} 20. Ng3 {[%emt 0:0:10]} c4 {[%emt 0:0:0]} 21. Bc2 {[%emt 0:0:13]} Ne5 22. Nxe5 {[%emt 0:0:16]} dxe5 {[%emt 0:0:0]} 23. a4 {[%emt 0:2:26]} c3 {[%emt 0:1:43]} 24. Qd3 {[%emt 0:0:26]} Rc4 {[%emt 0:0:2]
} 25. axb5 {[%emt 0:0:29]} axb5 {[%emt 0:0:2]} 26. Bb3 {[%emt 0:0:4]
} Rxb4 {[%emt 0:0:10]} 27. Qxc3 {[%emt 0:1:58]} Rxe4 {[%emt 0:0:0]} 28. Nxe4 {[%emt 0:0:3]} Nxe4 {[%emt 0:0:2]} 29. Qb4 {[%emt 0:0:2]
} Nf6 {[%emt 0:4:17]} 30. Qxb5 {[%emt 0:0:15]} Qb8 {[%emt 0:0:21]} 31. d6 {[%emt 0:0:48]
} 1-0

[Event "FIDE World Rapid-ch Open 2018"]
[White "Levin, Evgeny A."]
[Black "Zubov, Alexander"]
[Site "St. Petersburg"]
[Round "2.28"]
[Annotator "ChessBase"]
[Result "1/2-1/2"]
[Date "2018.12.26"]
[WhiteElo "2516"]
[BlackElo "2597"]
[PlyCount "39"]
[TimeControl "900+10"]

1. d4 {[%emt 0:0:0]} Nf6 {[%emt 0:0:7]} 2. c4 {[%emt 0:0:0]} e6 {[%emt 0:0:0]} 3. Nc3 {[%emt 0:0:9]} Bb4 {[%emt 0:0:24]} 4. e3 {[%emt 0:0:3]} d5 {[%emt 0:0:19]} 5. Nf3 {[%emt 0:0:9]} 0-0 {[%emt 0:0:8]} 6. Bd3 {[%emt 0:0:0]} b6 {[%emt 0:0:42]} 7. 0-0 {[%emt 0:0:7]} Bb7 {[%emt 0:0:21]} 8. cxd5 {[%emt 0:0:17]} exd5 {[%emt 0:0:5]} 9. a3 {[%emt 0:0:3]} Bd6 {[%emt 0:0:12]
} 10. b4 {[%emt 0:0:12]} a6 {[%emt 0:0:4]} 11. Qb3 {[%emt 0:0:0]} Nbd7 {[%emt 0:1:18]} 12. a4 {[%emt 0:0:30]} c6 {[%emt 0:1:27]} 13. a5 {[%emt 0:4:45]} b5 {[%emt 0:0:30]} 14. e4 {[%emt 0:0:14]} dxe4 {[%emt 0:0:0]} 15. Nxe4 {[%emt 0:0:3]} Nxe4 {[%emt 0:1:14]} 16. Bxe4 {[%emt 0:0:0]} h6 {[%emt 0:0:27]} 17. Re1 {[%emt 0:2:33]} Re8 {[%emt 0:2:14]} 18. Bd2 {[%emt 0:0:24]} Qc7 {[%emt 0:2:11]} 19. Bc2 {[%emt 0:0:40]} Nf6 {[%emt 0:0:0]} 20. h3 {[%emt 0:1:11]} 1/2-1/2

[Event "FIDE World Rapid-ch Open 2018"]
[White "Fridman, Daniel"]
[Black "Predke, Alexandr"]
[Site "St. Petersburg"]
[Round "2.29"]
[Annotator "ChessBase"]
[Result "1/2-1/2"]
[Date "2018.12.26"]
[WhiteElo "2633"]
[BlackElo "2622"]
[PlyCount "66"]
[TimeControl "900+10"]

1. d4 {[%emt 0:0:0]} d5 {[%emt 0:0:0]} 2. Nf3 {[%emt 0:0:0]} Nf6 {[%emt 0:0:0]
} 3. c4 {[%emt 0:0:0]} dxc4 {[%emt 0:0:0]} 4. e3 {[%emt 0:0:0]} c5 {[%emt 0:0:0]} 5. Bxc4 {[%emt 0:0:0]} cxd4 {[%emt 0:0:0]} 6. Qxd4 {[%emt 0:0:19]} Qxd4 {[%emt 0:0:6]} 7. Nxd4 {[%emt 0:0:1]} a6 {[%emt 0:0:0]} 8. 0-0 {[%emt 0:0:7]} Bd7 {[%emt 0:0:3]} 9. f3 {[%emt 0:1:42]} Nc6 {[%emt 0:0:14]
} 10. Nxc6 {[%emt 0:0:2]} Bxc6 {[%emt 0:0:2]} 11. e4 {[%emt 0:0:1]
} Rc8 {[%emt 0:0:11]} 12. Nc3 {[%emt 0:0:11]} e6 {[%emt 0:0:0]} 13. Be3 {[%emt 0:0:50]} Bxe4 {[%emt 0:0:33]} 14. Bxe6 {[%emt 0:0:16]} fxe6 {[%emt 0:0:7]} 15. Nxe4 {[%emt 0:0:7]} Nxe4 {[%emt 0:0:3]} 16. fxe4 {[%emt 0:0:2]} Bc5 {[%emt 0:0:9]} 17. Bxc5 {[%emt 0:0:22]} Rxc5 {[%emt 0:0:0]} 18. Rad1 {[%emt 0:0:12]} Rf8 {[%emt 0:0:53]} 19. Rd2 {[%emt 0:0:23]} Rxf1+ {[%emt 0:0:40]} 20. Kxf1 {[%emt 0:0:2]} Rc4 {[%emt 0:1:28]} 21. Re2 {[%emt 0:0:16]
} Ke7 {[%emt 0:0:11]} 22. b3 {[%emt 0:0:37]} Rc1+ {[%emt 0:0:0]} 23. Kf2 {[%emt 0:0:2]} Kd6 {[%emt 0:0:1]} 24. Rd2+ {[%emt 0:2:23]} Ke5 {[%emt 0:0:2]} 25. Rd7 {[%emt 0:0:26]} Rc2+ {[%emt 0:0:2]} 26. Kf3 {[%emt 0:0:2]
} b5 {[%emt 0:0:2]} 27. Rxg7 {[%emt 0:1:4]} Rxa2 {[%emt 0:0:0]} 28. Rxh7 {[%emt 0:2:38]} Rb2 {[%emt 0:0:8]} 29. Ra7 {[%emt 0:0:12]} Rxb3+ {[%emt 0:0:8]} 30. Kg4 {[%emt 0:0:2]} Rb2 {[%emt 0:0:52]} 31. Kf3 {[%emt 0:0:41]
} Rb3+ {[%emt 0:5:21]} 32. Kg4 {[%emt 0:0:2]} Rb2 {[%emt 0:0:0]} 33. Kf3 {[%emt 0:0:2]} Rb3+ {[%emt 0:0:2]} 1/2-1/2

[Event "FIDE World Rapid-ch Open 2018"]
[White "Sokolov, Andrei"]
[Black "Riazantsev, Alexander"]
[Site "St. Petersburg"]
[Round "2.30"]
[Annotator "ChessBase"]
[Result "1/2-1/2"]
[Date "2018.12.26"]
[WhiteElo "2532"]
[BlackElo "2649"]
[PlyCount "63"]
[TimeControl "900+10"]

1. Nf3 {[%emt 0:0:0]} d5 {[%emt 0:0:0]} 2. d4 {[%emt 0:0:0]} Nf6 {[%emt 0:0:0]
} 3. c4 {[%emt 0:0:0]} e6 {[%emt 0:0:0]} 4. Bg5 {[%emt 0:0:0]} h6 {[%emt 0:0:29]} 5. Bxf6 {[%emt 0:0:10]} Qxf6 {[%emt 0:0:2]} 6. Nc3 {[%emt 0:0:1]} c6 {[%emt 0:0:6]} 7. e3 {[%emt 0:0:9]} Nd7 {[%emt 0:0:16]
} 8. Bd3 {[%emt 0:0:34]} g6 {[%emt 0:0:3]} 9. 0-0 {[%emt 0:0:7]} Bg7 {[%emt 0:0:1]
} 10. e4 {[%emt 0:1:15]} dxc4 {[%emt 0:0:2]} 11. Bxc4 {[%emt 0:0:21]
} 0-0 {[%emt 0:0:4]} 12. Rc1 {[%emt 0:1:8]} Rb8 {[%emt 0:0:0]} 13. Qe2 {[%emt 0:1:1]} Qe7 {[%emt 0:2:7]} 14. Rfd1 {[%emt 0:0:48]} b5 {[%emt 0:0:44]} 15. Bb3 {[%emt 0:0:14]} a6 {[%emt 0:0:25]} 16. e5 {[%emt 0:0:0]} c5 {[%emt 0:0:11]} 17. d5 {[%emt 0:1:36]} c4 {[%emt 0:0:1]} 18. d6 {[%emt 0:0:1]} Qd8 {[%emt 0:0:7]} 19. Bc2 {[%emt 0:0:1]} Bb7 {[%emt 0:0:0]} 20. Be4 {[%emt 0:0:2]} Bxe4 {[%emt 0:1:7]} 21. Nxe4 {[%emt 0:1:3]} Nxe5 {[%emt 0:0:22]} 22. Nxe5 {[%emt 0:0:42]} Bxe5 {[%emt 0:0:1]} 23. b3 {[%emt 0:0:14]
} cxb3 {[%emt 0:2:7]} 24. axb3 {[%emt 0:0:8]} Bg7 {[%emt 0:0:0]} 25. g3 {[%emt 0:3:18]} a5 {[%emt 0:2:17]} 26. Nc5 {[%emt 0:0:19]} a4 {[%emt 0:2:9]} 27. bxa4 {[%emt 0:0:6]} b4 {[%emt 0:0:1]} 28. Qc4 {[%emt 0:1:2]
} Bc3 {[%emt 0:0:33]} 29. Ne4 {[%emt 0:0:35]} Bg7 {[%emt 0:0:0]} 30. Nc5 {[%emt 0:0:21]} Bc3 {[%emt 0:0:1]} 31. Ne4 {[%emt 0:0:17]} Bg7 {[%emt 0:0:4]} 32. Nc5 {[%emt 0:0:2]} 1/2-1/2